bitfinex-derivatives/quotes_ETHF0:USTF0_20250730
["timestamp","ask_amount","ask_price","bid_price","bid_amount"]
[1753884520744,0.52971,3775.6,3775.1,3.7789]
[1753884521027,2.311,3775.5,3775.4,3.7789]
[1753884521229,0.862,3775.8,3775.7,0.52969]
[1753884521428,3.28499,3775.8,3775.7,18.592]
[1753884521626,2.7553,3775.8,3775.7,18.592]
[1753884521923,2.7553,3775.8,3775.7,22.3709]
[1753884521924,2.311,3775.8,3775.7,22.3709]
[1753884522322,3.6173,3775.8,3775.7,21.4738]
[1753884523134,2.311,3775.4,3775.3,2.04385]
[1753884523326,3.6173,3775.4,3775.3,20.1051]
[1753884523729,1.4436,3775.9,3775.8,5.3368]
[1753884523928,0.5816,3775.9,3775.8,24.8387]
[1753884524530,6.0349,3775.9,3775.8,23.9416]
[1753884524735,6.0349,3775.9,3775.8,18.592]
[1753884525025,2.4176,3775.4,3775.3,2.80734]
[1753884525233,6.0349,3775.4,3775.3,21.39834]
[1753884525831,6.0349,3775.4,3775.3,24.47034]
[1753884526033,3.6173,3775.4,3775.3,22.00254]
[1753884527936,1.83605,3775.3,3775.2,1.3677]
[1753884528128,1.83605,3775.3,3775.2,19.9587]
[1753884528432,1.83605,3775.3,3775.2,21.4728]
[1753884528635,1.83605,3775.3,3775.2,18.59]
[1753884528636,6.56465,3775.3,3775.2,18.59]
[1753884529431,6.56465,3775.3,3775.2,19.4999]
[1753884529633,6.56465,3775.3,3775.2,22.4255]
[1753884529832,2.83497198,3775.9,3775.2,21.4718]
[1753884530133,4.7286,3775.6,3775.5,3.9819]
[1753884530333,6.0349,3775.6,3775.5,18.591]
[1753884530536,6.0349,3775.3,3775.2,1.3677]
[1753884530731,6.0349,3775.3,3775.2,18.59]
[1753884530933,2.4176,3775.3,3775.2,18.59]
[1753884531335,40.8,3775.6,3775.5,6.2467]
[1753884531531,44.4173,3775.6,3775.5,6.2467]
[1753884531833,44.4173,3775.6,3775.5,23.9386]
[1753884532634,6.0349,3775.6,3775.5,23.9386]
[1753884533435,2.4352,3775.6,3775.5,24.8357]
[1753884534027,6.0349,3775.6,3775.5,24.8357]
[1753884534226,6.0349,3775.6,3775.5,23.9386]
[1753884534630,6.0349,3775.6,3775.5,18.589]
[1753884534834,2.4176,3775.1,3775.0,39.5207]
[1753884535134,6.0349,3775.1,3775.0,58.1097]
[1753884535333,6.0349,3775.1,3775.0,18.589]
[1753884536136,0.5816,3775.1,3775.0,23.9386]
[1753884536441,0.5816,3775.1,3775.0,24.8357]
[1753884536831,1.11136,3775.3,3775.2,2.4678]
[1753884537032,6.56466,3775.3,3775.2,21.0558]
[1753884537433,6.56466,3775.3,3775.2,23.9376]
[1753884537936,6.56466,3775.3,3775.2,19.4979]
[1753884538136,6.56466,3775.3,3775.2,18.588]
[1753884539340,6.56466,3775.3,3775.2,23.8658]
[1753884539535,1.5184,3775.3,3775.2,24.718]
[1753884539734,1.5184,3775.6,3775.5,6.1302]
[1753884539932,0.5297,3775.7,3775.5,6.1302]
[1753884540135,0.9355,3775.8,3775.7,3.6622]
[1753884540338,3.02144,3776.1,3776.0,2.81]
[1753884540541,3.02144,3776.1,3776.0,3.6622]
[1753884540834,2.4918,3776.1,3776.0,3.6622]
[1753884541039,42.3563,3776.5,3776.4,0.5296]
[1753884541236,2.84035,3776.8,3776.6,3.6622]
[1753884541435,2.84035,3776.8,3776.7,22.2482]
[1753884541635,3.06705247,3776.8,3776.7,22.2482]
[1753884541942,4.62335247,3776.8,3776.7,21.396]
[1753884542534,0.22670247,3776.8,3776.7,22.2482]
[1753884542940,2.4918,3776.8,3776.7,19.4382]
[1753884543341,3.8671,3777.1,3776.9,0.8522]
[1753884543639,0.22671175,3777.0,3776.9,0.8522]
[1753884543845,0.018,3777.3,3776.9,18.585]
[1753884544141,0.018,3777.3,3777.1,3.6622]
[1753884544142,0.22667477,3777.2,3777.1,3.6622]
[1753884544337,1.16217477,3777.2,3777.1,3.6622]
[1753884544536,2.71847477,3777.2,3777.1,2.81]
[1753884544737,4.09377477,3777.2,3777.1,2.81]
[1753884545138,1.78297477,3777.2,3776.5,1.2704]
[1753884545339,0.9355,3776.9,3776.8,1.2704]
[1753884545640,0.54748,3777.3,3776.8,0.52954]
[1753884545837,0.52951,3777.1,3777.0,3.6622]
[1753884546042,4.62339442,3777.1,3777.0,2.81]
[1753884546233,7.04429442,3777.1,3777.0,2.81]
[1753884546438,7.04429442,3777.1,3777.0,1.2704]
[1753884546632,7.04429442,3777.1,3776.9,18.582]
[1753884546633,6.10879442,3777.1,3776.9,18.582]
[1753884546944,6.288,3777.0,3776.9,18.582]
[1753884547341,6.5148265,3777.0,3776.9,20.7149]
[1753884547734,6.288,3777.0,3776.9,20.7149]
[1753884548338,4.24786394,3777.0,3776.9,23.86]
[1753884548643,0.52949,3777.2,3777.1,2.468]
[1753884548849,0.75617458,3777.2,3777.1,6.1302]
[1753884549240,1.69167458,3777.2,3777.1,6.1302]
[1753884549442,3.22087458,3777.2,3777.1,6.1302]
[1753884549644,6.15247458,3777.2,3777.1,6.1302]
[1753884550746,7.04417458,3777.2,3777.1,5.278]
[1753884552441,7.04417458,3777.2,3777.1,6.1302]
[1753884552648,5.66887458,3777.2,3777.1,6.1302]
[1753884553042,2.95041,3777.0,3776.9,20.4793]
[1753884553345,7.04419458,3777.0,3776.9,20.4743]
[1753884553544,0.22668458,3777.0,3776.9,24.7072]
[1753884553743,0.22668458,3777.0,3776.9,21.045]
[1753884554336,0.22668458,3777.0,3776.9,23.855]
[1753884554536,6.51468458,3777.0,3776.9,20.0102]
[1753884554742,6.51468458,3777.0,3776.9,19.4375]
[1753884555441,2.69138458,3777.0,3776.9,24.7052]
[1753884555843,0.22668458,3777.0,3776.9,24.7052]
[1753884557347,0.54748,3777.3,3776.9,24.7052]
[1753884557348,0.018,3777.3,3777.2,6.65968]
[1753884557541,0.24463232,3777.3,3777.2,25.23268]
[1753884558546,0.24463232,3777.3,3777.2,24.7022]
[1753884558748,0.2,3777.9,3777.2,26.04]
[1753884559049,0.9355,3778.6,3778.5,6.1302]
[1753884559241,0.52927,3778.8,3778.5,24.7022]
[1753884559442,0.2446521,3778.7,3778.6,4.8598]
[1753884559645,0.2446521,3778.7,3778.6,6.65949]
[1753884559846,0.9355,3779.1,3778.7,0.52926]
[1753884560053,0.9355,3779.1,3779.0,3.6622]
[1753884560251,0.24462675,3779.1,3779.0,22.2322]
[1753884560557,0.52919,3779.3,3779.1,3.6622]
[1753884560740,0.52919,3779.3,3779.0,19.09922]
[1753884560741,0.52919,3779.3,3779.2,22.2322]
[1753884560943,0.77364127,3779.3,3779.2,22.2322]
[1753884561142,0.24445127,3779.3,3779.2,22.2322]
[1753884561344,1.32288,3779.6,3778.6,1.5396]
[1753884561551,1.32288,3779.6,3777.8,1.32348]
[1753884561552,3.8671,3778.8,3778.7,18.57]
[1753884561847,2.4918,3778.2,3777.7,0.8522]
[1753884562055,1.32313,3778.9,3777.7,1.2704]
[1753884562056,4.3965,3777.8,3777.7,1.2704]
[1753884562242,4.3965,3777.8,3777.7,19.8404]
[1753884563147,0.52939,3777.9,3777.7,18.57]
[1753884563351,0.52939,3777.9,3777.8,3.6622]
[1753884564149,1.46489,3777.9,3777.8,3.6622]
[1753884564551,3.8671,3777.9,3777.3,39.6766]
[1753884564750,4.39654,3777.5,3777.4,19.8364]
[1753884564951,4.39654,3777.5,3777.4,18.566]
[1753884565155,2.4918,3777.4,3777.3,38.137]
[1753884565451,3.8671,3777.4,3777.3,56.702]
[1753884565655,0.52946,3777.5,3777.3,60.3642]
[1753884565862,0.52946,3777.5,3777.4,3.6622]
[1753884566059,1.46496,3777.5,3777.4,3.6622]
[1753884566459,3.02126,3777.5,3777.4,2.81]
[1753884566665,2.4918,3777.5,3777.4,2.81]
[1753884566853,0.9355,3777.5,3777.4,2.81]
[1753884567559,0.52944,3777.6,3777.4,1.2704]
[1753884567761,0.52935,3778.2,3777.5,18.565]
[1753884568067,0.9355,3778.0,3777.8,2.81]
[1753884568254,2.4918,3778.0,3777.9,21.374]
[1753884569159,3.8545,3778.0,3777.9,21.374]
[1753884569362,1.3627,3777.8,3777.5,1.5083]
[1753884569560,1.32334,3778.3,3777.5,1.5083]
[1753884569561,2.4479,3777.6,3777.5,2.8004]
[1753884569757,2.4479,3777.6,3777.5,21.3644]
[1753884569758,3.8106,3777.6,3777.5,21.3644]
[1753884569957,4.34003,3777.6,3777.5,18.564]
[1753884570163,4.34006,3777.4,3777.3,38.137]
[1753884570353,40.8,3777.6,3777.4,0.52946]
[1753884570552,41.7142,3777.6,3777.5,22.2675]
[1753884570858,0.9142,3777.8,3777.6,1.43353]
[1753884571059,0.9142,3777.8,3777.7,22.2675]
[1753884571757,3.8106,3777.8,3777.7,19.8551]
[1753884571958,2.8964,3777.4,3777.3,38.137]
[1753884572157,3.8106,3777.4,3777.3,56.7]
[1753884572860,3.8106,3777.4,3777.3,57.9921]
[1753884573061,0.9142,3777.4,3777.3,60.4045]
[1753884573656,2.06312,3777.7,3777.4,3.32986]
[1753884573862,0.9142,3777.6,3777.5,18.563]
[1753884574162,0.9142,3777.6,3777.5,21.3634]
[1753884574360,0.9142,3777.6,3777.5,22.2675]
[1753884574565,1.44361,3777.8,3777.6,3.7045]
[1753884574864,4.34001,3777.8,3777.7,21.3634]
[1753884575165,4.34001,3777.8,3777.7,22.2675]
[1753884575166,0.9142,3777.8,3777.7,22.2675]
[1753884575760,1.32314,3778.9,3777.8,3.32979]
[1753884575960,0.9142,3778.4,3778.0,1.2921]
[1753884576167,3.8106,3778.3,3778.1,19.8551]
[1753884576359,3.8106,3778.2,3778.1,19.8551]
[1753884577166,3.8106,3778.2,3778.1,21.3634]
[1753884577758,1.32314,3778.9,3778.1,18.563]
[1753884577759,0.52932,3778.4,3778.1,18.563]
[1753884578063,0.9142,3778.3,3778.2,0.9041]
[1753884578262,0.9142,3778.3,3778.2,19.4651]
[1753884578662,0.9142,3778.3,3778.2,22.2655]
[1753884578866,0.9142,3778.6,3778.5,3.7045]
[1753884579062,3.8106,3778.6,3778.5,21.3614]
[1753884580169,0.9142,3778.6,3778.5,22.2655]
[1753884580766,2.4479,3778.6,3778.5,22.2655]
[1753884581165,0.9142,3778.6,3778.5,24.6367]
[1753884581568,4.0627,3778.6,3778.5,24.6367]
[1753884581763,6.3462,3778.6,3778.5,23.7306]
[1753884581967,4.0627,3778.6,3778.5,23.7306]
[1753884582167,1.5353,3778.6,3778.5,24.6347]
[1753884582371,2.529,3779.0,3778.9,6.0757]
[1753884582573,2.529,3779.0,3778.9,24.6347]
[1753884582771,1.1503,3779.2,3779.1,2.3712]
[1753884582968,1.5353,3779.2,3779.1,23.7306]
[1753884583274,6.3462,3779.2,3779.1,23.7306]
[1753884584271,6.3462,3779.2,3779.1,0.947]
[1753884584475,6.3462,3778.8,3778.7,0.8605]
[1753884584866,6.3462,3778.8,3778.7,19.4175]
[1753884585066,6.3462,3778.8,3778.7,23.7286]
[1753884585262,4.9835,3778.8,3778.7,23.7286]
[1753884585464,0.52921,3779.2,3778.9,5.74444]
[1753884585669,4.42751,3779.2,3779.1,5.1716]
[1753884585875,4.42751,3779.2,3779.1,1.8075]
[1753884586168,4.42751,3779.2,3779.1,0.8605]
[1753884586373,6.87541,3779.2,3779.1,0.8605]
[1753884586576,6.87541,3779.2,3779.0,18.557]
[1753884586774,5.3525,3779.1,3779.0,18.557]
[1753884586971,6.3462,3779.1,3779.0,18.557]
[1753884587172,6.3462,3779.1,3779.0,22.2203]
[1753884587474,4.0627,3779.1,3779.0,24.6327]
[1753884587873,2.06451,3779.2,3779.1,5.1716]
[1753884588169,6.87541,3779.2,3779.1,0.8605]
[1753884588769,6.87541,3779.2,3779.1,2.1526]
[1753884588967,6.87541,3779.2,3779.1,3.6633]
[1753884589374,0.9142,3779.2,3779.1,6.0757]
[1753884589575,4.9835,3779.2,3779.1,5.1716]
[1753884589872,2.5356,3778.6,3778.5,1.4242]
[1753884590172,6.3462,3778.6,3778.5,23.7256]
[1753884590376,4.7314,3778.5,3778.4,0.8605]
[1753884590581,6.87553,3778.3,3778.2,1.2921]
[1753884590768,5.26077,3778.1,3778.0,0.8605]
[1753884591074,4.33997,3778.1,3778.0,18.553]
[1753884591574,4.33997,3778.1,3778.0,19.8451]
[1753884591775,4.33997,3778.1,3778.0,21.3534]
[1753884592368,3.8106,3778.1,3778.0,21.3534]
[1753884592563,0.52934,3778.3,3778.0,22.2575]
[1753884592774,0.52934,3778.3,3778.0,18.553]
[1753884592974,1.44354,3778.3,3778.2,3.7045]
[1753884593273,4.33994,3778.3,3778.2,2.8004]
[1753884593670,5.4254,3778.3,3778.2,5.1716]
[1753884593878,4.0627,3778.3,3778.2,5.1716]
[1753884594170,1.3627,3778.6,3778.2,6.0757]
[1753884594371,2.06462,3778.4,3778.3,23.7236]
[1753884594577,1.5353,3778.4,3778.3,23.7236]
[1753884595274,2.85687,3778.8,3778.3,23.7236]
[1753884595275,0.52927,3778.7,3778.6,2.3712]
[1753884595574,1.44347,3778.7,3778.6,21.8263]
[1753884595764,6.87547,3778.7,3778.6,20.9222]
[1753884596075,4.0627,3778.7,3778.6,23.7226]
[1753884596276,1.15033,3779.1,3779.0,2.3712]
[1753884596472,2.06453,3779.1,3779.0,24.6267]
[1753884596674,1.5353,3779.1,3779.0,24.62162854]
[1753884597364,2.529,3779.1,3779.0,23.71752854]
[1753884597679,1.5337,3778.7,3778.2,1.2921]
[1753884597869,1.5337,3778.7,3778.1,2.22748]
[1753884597870,5.432,3778.4,3778.3,21.79663]
[1753884598070,5.432,3778.4,3778.3,22.74363]
[1753884598362,6.3462,3778.4,3778.3,24.25193]
[1753884598565,6.3462,3778.4,3778.3,5.70093]
[1753884598763,6.3462,3778.4,3778.3,23.7216]
[1753884599277,6.3462,3778.4,3778.3,5.1716]
[1753884599579,6.0827,3778.0,3777.9,2.518]
[1753884599869,6.0827,3778.0,3777.9,21.067]
[1753884600074,6.0827,3778.0,3777.9,20.0439]
[1753884600276,5.2175,3777.5,3777.4,3.24355414]
[1753884600573,6.0827,3777.5,3777.4,19.4229]
[1753884600770,6.0827,3777.5,3777.4,20.8083]
[1753884600972,6.0827,3777.5,3777.4,23.8578]
[1753884601274,4.8077,3777.5,3777.4,23.8578]
[1753884601670,6.0827,3777.5,3777.4,23.8578]
[1753884601865,6.0827,3777.5,3777.3,38.137]
[1753884602073,6.0827,3777.2,3777.1,3.31517851]
[1753884602265,6.0827,3777.2,3777.1,21.86417851]
[1753884602466,0.5295,3777.1,3776.9,3.31517851]
[1753884602667,0.52961,3776.3,3776.2,4.76231713]
[1753884602871,3.27611,3776.3,3776.2,4.76231713]
[1753884603070,0.52967,3775.9,3775.8,0.19598236]
[1753884603264,0.52967,3775.9,3775.8,18.74498236]
[1753884603468,3.27617,3775.9,3775.8,0.19598236]
[1753884604075,43.5465,3775.9,3775.8,0.19598236]
[1753884604271,43.1287,3775.9,3775.8,1.60238236]
[1753884604471,0.52963,3776.2,3775.9,1.3854]
[1753884604776,0.52963,3776.2,3775.8,20.15038236]
[1753884604777,2.7465,3775.9,3775.8,18.74398236]
[1753884605270,0.8652,3775.9,3775.8,22.38938236]
[1753884605477,0.5296,3776.4,3775.9,0.52967]
[1753884605670,40.8,3776.5,3776.3,1.3854]
[1753884605970,2.3287,3776.8,3776.7,2.7918]
[1753884606177,2.3287,3776.8,3776.7,21.3438]
[1753884606870,0.8652,3776.8,3776.7,21.3438]
[1753884607077,2.3287,3776.8,3776.7,21.3438]
[1753884608972,0.8652,3776.8,3776.7,21.3438]
[1753884609378,2.7465,3776.8,3776.7,18.552]
[1753884609580,2.7465,3776.6,3776.4,1.3854]
[1753884609781,2.7465,3776.6,3776.5,20.46798]
[1753884609968,0.8652,3776.6,3776.5,21.87438]
[1753884610174,0.8652,3777.2,3777.1,2.7918]
[1753884610374,0.8652,3777.2,3777.1,22.1974]
[1753884610679,1.283,3777.2,3776.7,2.7918]
[1753884610980,2.7465,3776.9,3776.8,18.553]
[1753884611176,2.7465,3776.6,3776.5,0.52958]
[1753884611377,2.7465,3776.6,3776.5,18.553]
[1753884611679,2.7465,3776.6,3776.5,21.3448]
[1753884611977,2.7465,3776.6,3776.5,19.9384]
[1753884612376,2.7465,3776.6,3776.5,1.3854]
[1753884612575,2.7465,3776.6,3776.5,19.9384]
[1753884612775,2.7465,3776.8,3776.0,2.239]
[1753884612973,2.7465,3776.2,3776.1,18.552]
[1753884613371,0.52967,3775.9,3775.8,0.19598236]
[1753884613677,3.27617,3775.9,3775.8,18.74798236]
[1753884613872,3.27617,3775.9,3775.8,0.19598236]
[1753884614080,0.52982,3774.8,3774.7,2.7918]
[1753884614276,2.7465,3774.8,3774.7,2.7918]
[1753884614981,2.7465,3774.8,3774.6,18.553]
[1753884614982,1.8813,3774.7,3774.6,18.553]
[1753884615185,40.8,3775.2,3774.6,1.51077198]
[1753884615378,1.283,3775.9,3774.6,1.51077198]
[1753884615379,2.3287,3775.4,3774.8,2.7918]
[1753884615681,0.8652,3775.0,3774.8,0.52982]
[1753884615875,2.3287,3775.0,3774.9,2.7918]
[1753884616081,1.99324,3775.4,3775.0,0.52979]
[1753884616381,40.8,3775.7,3775.2,2.7918]
[1753884616681,40.8,3775.7,3775.6,3.6454]
[1753884617083,0.8652,3776.2,3775.9,0.52967]
[1753884617277,0.4178,3776.0,3775.6,1.3854]
[1753884617479,2.7465,3775.8,3775.6,0.52971]
[1753884617680,2.7465,3775.8,3775.7,1.3854]
[1753884617980,2.7465,3775.8,3775.7,18.554]
[1753884617981,0.94749,3775.8,3775.7,18.554]
[1753884618174,0.4178,3775.8,3775.7,18.554]
[1753884618390,0.4178,3775.8,3775.7,19.9394]
[1753884618592,2.7465,3775.8,3775.7,21.3458]
[1753884618894,2.7465,3775.8,3775.7,19.9394]
[1753884619288,2.7465,3775.8,3775.7,21.3458]
[1753884619495,2.3287,3775.8,3775.7,21.3458]
[1753884619794,0.8652,3775.8,3775.7,21.3458]
[1753884619992,0.8652,3775.8,3775.7,22.1994]
[1753884620182,2.3287,3775.8,3775.7,21.3458]
[1753884620386,2.7465,3775.8,3775.7,18.554]
[1753884620594,2.7465,3775.7,3775.5,18.555]
[1753884620793,0.52972,3775.5,3775.2,19.08476]
[1753884620994,2.7465,3776.0,3775.7,0.5297]
[1753884621289,40.8,3776.2,3776.0,0.52965]
[1753884621487,0.8652,3776.2,3776.1,3.6454]
[1753884622192,2.3287,3776.2,3776.1,2.7918]
[1753884622393,2.7465,3776.1,3775.9,1.3854]
[1753884622589,0.8652,3776.0,3775.9,1.4064]
[1753884622789,2.3287,3776.0,3775.9,1.4064]
[1753884623190,0.8652,3776.0,3775.9,3.6454]
[1753884623390,2.3287,3776.0,3775.9,2.7918]
[1753884623586,2.7465,3776.0,3775.9,1.3854]
[1753884623791,1.8813,3775.8,3775.6,18.555]
[1753884623997,1.8813,3775.6,3775.5,18.555]
[1753884624198,2.7465,3775.6,3775.5,18.555]
[1753884624890,2.7465,3775.4,3775.3,1.3854]
[1753884625090,2.7465,3775.4,3775.3,19.9394]
[1753884625292,2.7465,3775.4,3775.3,21.3458]
[1753884625489,2.3287,3775.4,3775.3,21.3458]
[1753884625894,0.52977,3775.3,3775.0,1.3854]
[1753884626093,2.7465,3775.1,3775.0,1.3854]
[1753884626299,2.7465,3775.1,3775.0,19.9404]
[1753884626592,2.3287,3775.1,3775.0,21.3468]
[1753884626798,0.94752,3775.6,3775.5,1.4064]
[1753884626993,0.52972,3775.6,3775.5,21.3468]
[1753884627190,0.4178,3776.0,3775.6,2.7918]
[1753884627390,0.8652,3775.9,3775.8,0.8536]
[1753884627590,0.8652,3775.9,3775.8,3.6454]
[1753884627797,2.3287,3775.9,3775.8,2.7918]
[1753884629795,0.4181,3776.1,3775.5,18.555]
[1753884629796,0.52965,3776.1,3775.9,2.8543]
[1753884629997,3.36517,3775.9,3775.8,2.8543]
[1753884630301,3.36517,3775.9,3775.8,1.3579]
[1753884631303,3.36517,3775.9,3775.8,19.9119]
[1753884631501,0.52966,3776.0,3775.8,22.3293]
[1753884631801,0.9237,3776.2,3776.0,2.2789]
[1753884632097,0.52964,3776.2,3776.1,2.8543]
[1753884632302,0.94776,3776.0,3775.9,1.3579]
[1753884632502,0.52962,3776.3,3775.9,3.38396]
[1753884632701,0.9237,3776.2,3776.0,0.52965]
[1753884633003,2.8355,3776.2,3776.1,1.3579]
[1753884633402,2.8355,3776.2,3776.1,2.8543]
[1753884636000,0.52968,3775.8,3775.7,1.4964]
[1753884636297,3.36518,3775.8,3775.7,19.9099]
[1753884636505,3.36518,3775.8,3775.4,2.8543]
[1753884636506,3.36523,3775.5,3775.4,2.8543]
[1753884636704,3.36523,3775.5,3775.4,19.9099]
[1753884637393,3.36523,3775.5,3775.4,2.8543]
[1753884637903,0.5298,3775.1,3774.9,1.3579]
[1753884638100,2.0235,3775.1,3775.0,18.552]
[1753884638297,1.4937,3775.1,3775.0,21.4063]
[1753884638495,1.4937,3775.1,3774.7,2.4174]
[1753884638808,2.0235,3775.0,3774.9,2.8543]
[1753884639004,2.0235,3775.0,3774.1,1.32481]
[1753884639005,0.52987,3774.5,3774.4,1.4964]
[1753884639308,2.94729,3774.3,3774.2,1.51494673]
[1753884639606,3.36539,3774.3,3774.2,21.42384673]
[1753884641205,2.4174,3774.3,3774.2,21.42384673]
[1753884641401,0.52986,3774.6,3774.5,1.4964]
[1753884641611,0.52984,3774.7,3774.5,4.30516]
[1753884641910,1.45354,3774.7,3774.6,22.3273]
[1753884642411,3.36534,3774.7,3774.6,18.552]
[1753884643810,3.36539,3774.3,3774.2,0.01854673]
[1753884644113,3.36539,3774.3,3774.2,19.92944673]
[1753884644610,1.9118,3774.7,3774.2,22.34684673]
[1753884644805,0.52988,3774.5,3774.3,3.7753]
[1753884645203,0.52988,3774.5,3774.4,3.7753]
[1753884645511,1.45358,3774.5,3774.4,3.7753]
[1753884645713,3.36538,3774.5,3774.4,2.8543]
[1753884645915,0.5299,3774.3,3774.2,19.92944673]
[1753884646215,5.5824,3774.3,3774.2,0.87994673]
[1753884646414,5.5824,3774.3,3774.2,20.78984673]
[1753884646610,5.5824,3774.3,3774.2,23.87144673]
[1753884646806,41.3298,3775.0,3774.9,0.8614]
[1753884647005,2.022,3775.0,3774.9,5.3009]
[1753884647309,5.5823,3775.0,3774.9,0.8614]
[1753884647508,4.91334,3774.7,3774.6,23.8539]
[1753884647710,5.58234,3774.7,3774.6,23.8539]
[1753884647905,3.57159,3774.3,3774.2,3.82304673]
[1753884648110,5.58239,3774.3,3774.2,19.43294673]
[1753884648619,5.58239,3774.3,3774.2,22.37604673]
[1753884649018,5.58239,3774.3,3774.2,23.87244673]
[1753884649521,5.32401512,3774.3,3774.2,24.24863697]
[1753884649914,5.32401512,3774.3,3774.2,18.94873697]
[1753884650419,5.32401512,3774.3,3774.2,19.81013697]
[1753884650718,5.32401512,3774.3,3774.2,21.16803697]
[1753884651414,2.4717,3774.3,3774.2,25.17063697]
[1753884651620,0.52989,3774.4,3774.3,6.2219]
[1753884651816,0.52989,3774.4,3774.3,6.59809024]
[1753884652019,0.52986,3774.6,3774.5,2.4466]
[1753884652225,0.52986,3774.6,3774.5,25.15009024]
[1753884653023,0.52985,3774.7,3774.6,6.2219]
[1753884653221,3.00155,3774.7,3774.6,6.59584752]
[1753884653429,5.57295,3774.7,3774.6,5.67484752]
[1753884654022,4.49525,3774.7,3774.6,6.59584752]
[1753884654422,5.57295,3774.7,3774.6,5.3009]
[1753884654621,5.57295,3774.7,3774.6,3.8045]
[1753884655230,5.57295,3774.7,3774.6,4.17857021]
[1753884655429,5.57295,3774.7,3774.6,18.92607021]
[1753884655622,5.57295,3774.7,3774.6,18.552]
[1753884655823,1.45355,3774.7,3774.6,24.7739]
[1753884656027,0.52985,3774.7,3774.6,24.7739]
[1753884656531,0.52985,3774.7,3774.6,25.14805063]
[1753884657129,0.5685,3774.8,3774.7,0.52983]
[1753884657333,0.5298,3775.0,3774.9,6.2219]
[1753884657534,0.9237,3775.7,3775.4,0.5948]
[1753884657733,1.4937,3776.0,3775.7,0.52969]
[1753884657929,1.4937,3776.3,3776.2,2.8543]
[1753884658232,2.4174,3776.3,3776.2,22.70045063]
[1753884660634,2.8356,3776.3,3776.2,21.77945063]
[1753884660937,1.50602329,3776.4,3776.2,0.37415063]
[1753884661232,1.4666,3776.2,3776.1,24.6193]
[1753884661434,0.8607,3776.3,3776.2,5.2227]
[1753884661634,0.8607,3776.3,3776.2,6.44430149]
[1753884662135,1.99621,3776.3,3776.2,6.44430149]
[1753884662334,1.4666,3776.3,3776.2,6.44430149]
[1753884662933,0.52961,3776.4,3776.2,6.44430149]
[1753884662934,0.8607,3776.7,3776.4,2.9586]
[1753884663135,0.8607,3776.7,3776.6,3.6808]
[1753884663348,0.52955,3776.8,3776.7,3.6808]
[1753884663634,43.68965,3776.8,3776.7,21.70120149]
[1753884664138,3.30785,3776.8,3776.7,20.28450149]
[1753884664433,3.30785,3776.8,3776.7,18.92000149]
[1753884664632,4.81387329,3776.8,3776.7,0.37400149]
[1753884665034,2.03557329,3776.8,3776.6,18.546]
[1753884665234,2.7783,3776.7,3776.6,18.546]
[1753884665642,0.52966,3776.0,3775.7,1.89419]
[1753884665935,1.3903,3776.5,3776.1,2.2641]
[1753884666238,0.8607,3776.7,3776.2,18.544]
[1753884666539,0.5296,3776.4,3776.3,3.6808]
[1753884666741,1.3903,3776.4,3776.3,3.6808]
[1753884667040,2.8897,3776.4,3776.3,21.3242]
[1753884667447,40.8,3777.1,3776.4,3.6808]
[1753884667637,40.8,3777.1,3776.3,18.543]
[1753884667638,40.8,3777.1,3776.5,3.6808]
[1753884667935,0.8607,3776.9,3776.6,0.8996]
[1753884668134,2.02893,3776.9,3776.8,2.7812]
[1753884668342,0.52952,3777.0,3776.8,4.21034]
[1753884668535,0.52952,3777.0,3776.9,2.7812]
[1753884668729,0.52952,3777.0,3776.9,3.6808]
[1753884669033,40.8,3777.0,3776.9,3.6808]
[1753884669232,0.52952,3777.0,3776.8,3.6808]
[1753884669433,0.52952,3777.0,3776.9,3.6808]
[1753884670230,1.39022,3777.0,3776.9,3.6808]
[1753884670432,0.52954,3776.8,3776.7,18.542]
[1753884670640,2.88964,3776.8,3776.7,21.3232]
[1753884670841,0.8607,3776.8,3776.7,21.3232]
[1753884671139,1.13544,3776.9,3776.8,6.0703]
[1753884671445,5.58154,3776.9,3776.8,5.1707]
[1753884671938,5.58154,3776.9,3775.8,2.83020329]
[1753884671939,2.7783,3776.5,3775.6,1.4167]
[1753884672241,2.3601,3775.8,3775.7,21.3202]
[1753884672438,0.8607,3775.8,3775.7,22.2198]
[1753884672635,0.52968,3775.9,3775.8,3.6808]
[1753884673843,0.8607,3776.5,3775.9,0.8996]
[1753884674036,0.8607,3776.5,3776.1,0.52963]
[1753884674237,0.52963,3776.2,3776.1,4.21043]
[1753884674536,0.52961,3776.4,3776.3,0.52961]
[1753884674743,0.52961,3776.4,3776.3,19.4376]
[1753884674937,0.52961,3776.4,3776.3,22.2188]
[1753884676237,1.4994,3776.9,3776.5,3.6808]
[1753884676443,0.52956,3776.7,3776.6,22.2188]
[1753884676738,0.8607,3777.3,3776.8,1.3645]
[1753884676946,0.5295,3777.2,3777.1,3.6808]
[1753884677141,0.5295,3777.2,3777.1,22.2168]
[1753884677342,0.52948,3777.3,3777.2,2.7812]
[1753884677645,2.44708,3777.3,3777.2,2.7812]
[1753884677944,1.80844,3776.8,3776.7,18.536]
[1753884678441,3.30784,3776.8,3776.7,18.536]
[1753884680040,1.50602329,3777.3,3776.7,3.6808]
[1753884680244,0.5295,3777.1,3776.9,0.8996]
[1753884680543,2.88963,3776.9,3776.8,18.535]
[1753884680742,0.52959,3776.5,3776.3,0.52961]